fUST/lending_fUST_20251029
["ID","MTS","AMOUNT","RATE_DAILY","PERIOD"]
[392610403,1761744659704,-500.0,0.00022465,2]
[392610404,1761744659714,-500.0,0.00022465,2]
[392610405,1761744659723,-500.0,0.00022465,2]
[392610406,1761744659732,-500.0,0.00022465,2]
[392610407,1761744659741,-500.0,0.00022465,2]
[392610408,1761744659750,-500.0,0.00022465,2]
[392610409,1761744659760,-500.0,0.00022465,2]
[392610410,1761744659769,-599.24,0.00022465,2]
[392610411,1761744659779,-500.0,0.00022465,2]
[392610412,1761744659789,-500.0,0.00022465,2]
[392610413,1761744659800,-500.0,0.00022465,2]
[392610414,1761744659809,-500.0,0.00022465,2]
[392610415,1761744659819,-500.0,0.00022465,2]
[392610416,1761744659828,-500.0,0.00022465,2]
[392610417,1761744659838,-500.0,0.00022465,2]
[392610418,1761744659847,-500.0,0.00022465,2]
[392610419,1761744659856,-500.0,0.00022465,2]
[392610420,1761744659866,-500.0,0.00022465,2]
[392610421,1761744659876,-500.0,0.00022465,2]
[392610422,1761744659885,-500.0,0.00022465,2]
[392610423,1761744659895,-512.79,0.00022465,2]
[392610424,1761744659904,-500.0,0.00022465,2]
[392610425,1761744659913,-500.0,0.00022465,2]
[392610426,1761744659922,-2350.58,0.00022465,2]
[392610427,1761744659932,-500.0,0.00022465,2]
[392610428,1761744659941,-500.0,0.00022465,2]
[392610429,1761744659951,-500.0,0.00022465,2]
[392610430,1761744659960,-500.0,0.00022465,2]
[392610431,1761744659969,-500.0,0.00022465,2]
[392610432,1761744659978,-500.0,0.00022465,2]
[392610433,1761744659988,-500.0,0.00022465,2]
[392610434,1761744659997,-500.0,0.00022465,2]
[392610435,1761744660006,-500.0,0.00022465,2]
[392610436,1761744660015,-500.0,0.00022465,2]
[392610437,1761744660026,-500.0,0.00022465,2]
[392610438,1761744660036,-500.0,0.00022465,2]
[392610439,1761744660045,-500.0,0.00022465,2]
[392610440,1761744660055,-500.0,0.00022465,2]
[392610441,1761744660064,-500.0,0.00022465,2]
[392610442,1761744660073,-500.0,0.00022465,2]
[392610443,1761744660083,-500.0,0.00022465,2]
[392610444,1761744660092,-500.0,0.00022465,2]
[392610445,1761744660101,-500.0,0.00022465,2]
[392610446,1761744660111,-500.0,0.00022465,2]
[392610447,1761744660120,-500.0,0.00022465,2]
[392610448,1761744660131,-500.0,0.00022465,2]
[392610449,1761744660140,-1099.68,0.00022465,2]
[392610450,1761744660150,-500.0,0.00022465,2]
[392610451,1761744660159,-500.0,0.00022465,2]
[392610452,1761744660168,-500.0,0.00022465,2]
[392610453,1761744660178,-1576.49,0.00022465,2]
[392610454,1761744660187,-500.0,0.00022465,2]
[392610455,1761744660196,-500.0,0.00022465,2]
[392610456,1761744660206,-500.0,0.00022465,2]
[392610457,1761744660215,-360.94430867,0.00022465,2]
[392610458,1761744660224,-500.0,0.00022465,2]
[392610459,1761744660233,-500.0,0.00022465,2]
[392610460,1761744660242,-1102.85,0.00022465,2]
[392610461,1761744660252,-500.0,0.00022465,2]
[392610462,1761744660261,-500.0,0.00022465,2]
[392610463,1761744660270,-500.0,0.00022465,2]
[392610464,1761744660280,-500.0,0.00022465,2]
[392610465,1761744660289,-603.26,0.00022465,2]
[392610466,1761744660298,-500.0,0.00022465,2]
[392610467,1761744660307,-500.0,0.00022465,2]
[392610468,1761744660316,-500.0,0.00022465,2]
[392610469,1761744660326,-500.0,0.00022465,2]
[392610470,1761744660335,-500.0,0.00022465,2]
[392610471,1761744660344,-500.0,0.00022465,2]
[392610472,1761744660355,-500.0,0.00022465,2]
[392610473,1761744660365,-500.0,0.00022465,2]
[392610474,1761744660374,-684.04,0.00022465,2]
[392610475,1761744660386,-500.0,0.00022465,2]
[392610476,1761744660395,-500.0,0.00022465,2]
[392610477,1761744660405,-500.0,0.00022465,2]
[392610478,1761744660415,-788.68,0.00022465,2]
[392610479,1761744660425,-524.78027271,0.00022465,2]
[392610480,1761744660434,-500.0,0.00022465,2]
[392610481,1761744660443,-500.0,0.00022465,2]
[392610482,1761744660453,-626.15,0.00022465,2]
[392610483,1761744660462,-500.0,0.00022465,2]
[392610484,1761744660471,-546.2126272,0.00022465,2]
[392610485,1761744660480,-500.0,0.00022465,2]
[392610486,1761744660491,-500.0,0.00022465,2]
[392610487,1761744660501,-500.0,0.00022465,2]
[392610488,1761744660510,-500.0,0.00022465,2]
[392610489,1761744660521,-500.0,0.00022465,2]
[392610490,1761744660530,-500.0,0.00022465,2]
[392610491,1761744660540,-500.0,0.00022465,2]
[392610492,1761744660549,-500.0,0.00022465,2]
[392610493,1761744660559,-500.0,0.00022465,2]
[392610494,1761744660568,-500.0,0.00022465,2]
[392610495,1761744660578,-698.4,0.00022465,2]
[392610496,1761744660587,-500.0,0.00022465,2]
[392610497,1761744660596,-500.0,0.00022465,2]
[392610498,1761744660605,-500.0,0.00022465,2]
[392610499,1761744660614,-500.0,0.00022465,2]
[392610500,1761744660624,-500.0,0.00022465,2]
[392610501,1761744660634,-500.0,0.00022465,2]
[392610502,1761744660644,-500.0,0.00022465,2]
[392610503,1761744660653,-500.0,0.00022465,2]
[392610504,1761744660663,-500.0,0.00022465,2]
[392610505,1761744660672,-500.0,0.00022465,2]
[392610506,1761744660681,-500.0,0.00022465,2]
[392610507,1761744660690,-500.0,0.00022465,2]
[392610508,1761744660699,-500.0,0.00022465,2]
[392610509,1761744660709,-500.0,0.00022465,2]
[392610510,1761744660718,-500.0,0.00022465,2]
[392610511,1761744660727,-500.0,0.00022465,2]
[392610512,1761744660736,-567.68698875,0.00022465,2]
[392610513,1761744660745,-500.0,0.00022465,2]
[392610514,1761744660755,-899.05,0.00022465,2]
[392610515,1761744660764,-500.0,0.00022465,2]
[392610516,1761744660773,-500.0,0.00022465,2]
[392610517,1761744660781,-500.0,0.00022465,2]
[392610518,1761744660790,-500.0,0.00022465,2]
[392610519,1761744660799,-714.08,0.00022465,2]
[392610520,1761744660809,-500.0,0.00022465,2]
[392610521,1761744660818,-500.0,0.00022465,2]
[392610522,1761744660827,-500.0,0.00022465,2]
[392610523,1761744660836,-379.6882787,0.00022465,2]
[392610524,1761744660847,-988.15,0.00022465,2]
[392610525,1761744660858,-500.0,0.00022465,2]
[392610526,1761744660868,-500.0,0.00022465,2]
[392610527,1761744660877,-500.0,0.00022465,2]
[392610528,1761744660887,-500.0,0.00022465,2]
[392610529,1761744660896,-500.0,0.00022465,2]
[392610530,1761744660907,-500.0,0.00022465,2]
[392610531,1761744660918,-295.16469487,0.00022465,2]
[392610532,1761744660927,-500.0,0.00022465,2]
[392610533,1761744660937,-512.31,0.00022465,2]
[392610534,1761744660947,-500.0,0.00022465,2]
[392610535,1761744660958,-500.0,0.00022465,2]
[392610536,1761744660967,-500.0,0.00022465,2]
[392610537,1761744661119,-500.0,0.00022465,2]
[392610538,1761744661134,-500.0,0.00022465,2]
[392610539,1761744661144,-500.0,0.00022465,2]
[392610540,1761744661153,-541.63,0.00022465,2]
[392610541,1761744661163,-500.0,0.00022465,2]
[392610542,1761744661173,-500.0,0.00022465,2]
[392610543,1761744661182,-500.0,0.00022465,2]
[392610544,1761744661191,-500.0,0.00022465,2]
[392610545,1761744661201,-500.0,0.00022465,2]
[392610546,1761744661211,-500.0,0.00022465,2]
[392610547,1761744661220,-500.0,0.00022465,2]
[392610548,1761744661230,-500.0,0.00022465,2]
[392610549,1761744661239,-500.0,0.00022465,2]
[392610550,1761744661249,-500.0,0.00022465,2]
[392610551,1761744661258,-500.0,0.00022465,2]
[392610552,1761744661271,-500.0,0.00022465,2]
[392610553,1761744661280,-500.0,0.00022465,2]
[392610554,1761744661289,-500.0,0.00022465,2]
[392610555,1761744661298,-500.0,0.00022465,2]
[392610556,1761744661309,-1548.99,0.00022465,2]
[392610557,1761744661320,-500.0,0.00022465,2]
[392610558,1761744661330,-685.98,0.00022465,2]
[392610559,1761744661343,-500.0,0.00022465,2]
[392610560,1761744661353,-976.59,0.00022465,2]
[392610561,1761744661363,-500.0,0.00022465,2]
[392610562,1761744661372,-500.0,0.00022465,2]
[392610563,1761744661385,-2337.4,0.00022465,2]
[392610564,1761744661394,-517.5216342,0.00022465,2]
[392610565,1761744661403,-1038.16,0.00022465,2]
[392610566,1761744661412,-500.0,0.00022465,2]
[392610567,1761744661422,-500.0,0.00022465,2]
[392610568,1761744661431,-500.0,0.00022465,2]
[392610569,1761744661440,-500.0,0.00022465,2]
[392610570,1761744661449,-500.0,0.00022465,2]
[392610571,1761744661459,-500.0,0.00022465,2]
[392610572,1761744661468,-500.0,0.00022465,2]
[392610573,1761744661477,-380.16279962,0.00022465,2]
[392610574,1761744661486,-500.0,0.00022465,2]
[392610575,1761744661496,-783.12,0.00022465,2]
[392610576,1761744661505,-668.04,0.00022465,2]
[392610577,1761744661515,-500.0,0.00022465,2]
[392610578,1761744661526,-500.0,0.00022465,2]
[392610579,1761744661535,-500.0,0.00022465,2]
[392610580,1761744661545,-1043.07,0.00022465,2]
[392610581,1761744661555,-1011.91,0.00022465,2]
[392610582,1761744661564,-675.26,0.00022465,2]
[392610583,1761744661574,-500.0,0.00022465,2]
[392610584,1761744661583,-554.07,0.00022465,2]
[392610585,1761744661592,-1733.8,0.00022465,2]
[392610586,1761744661601,-500.0,0.00022465,2]
[392610587,1761744661611,-500.0,0.00022465,2]
[392610588,1761744661621,-500.0,0.00022465,2]
[392610589,1761744661632,-500.0,0.00022465,2]
[392610590,1761744661641,-2213.71,0.00022465,2]
[392610591,1761744661650,-500.0,0.00022465,2]
[392610592,1761744661659,-2909.46,0.00022465,2]
[392610593,1761744661669,-500.0,0.00022465,2]
[392610594,1761744661678,-1207.13,0.00022465,2]
[392610595,1761744661687,-500.0,0.00022465,2]
[392610596,1761744661696,-500.0,0.00022465,2]
[392610597,1761744661705,-500.0,0.00022465,2]
[392610598,1761744661714,-500.0,0.00022465,2]
[392610599,1761744661725,-848.29,0.00022465,2]
[392610600,1761744661735,-500.0,0.00022465,2]
[392610601,1761744661745,-660.18,0.00022465,2]
[392610602,1761744661754,-788.7,0.00022465,2]
[392610603,1761744661764,-500.0,0.00022465,2]
[392610604,1761744661773,-500.0,0.00022465,2]
[392610605,1761744661783,-500.0,0.00022465,2]
[392610606,1761744661792,-1526.3,0.00022465,2]
[392610607,1761744661802,-500.0,0.00022465,2]
[392610608,1761744661812,-500.0,0.00022465,2]
[392610609,1761744661822,-500.0,0.00022465,2]
[392610610,1761744661831,-500.0,0.00022465,2]
[392610611,1761744661840,-500.0,0.00022465,2]
[392610612,1761744661850,-981.97,0.00022465,2]
[392610613,1761744661859,-294.02484652,0.00022465,2]
[392610614,1761744661869,-500.0,0.00022465,2]
[392610615,1761744661878,-500.0,0.00022465,2]
[392610616,1761744661888,-998.14,0.00022465,2]
[392610617,1761744661897,-800.61,0.00022465,2]
[392610618,1761744661906,-500.0,0.00022465,2]
[392610619,1761744661916,-500.0,0.00022465,2]
[392610620,1761744661925,-500.0,0.00022465,2]
[392610621,1761744661935,-500.0,0.00022465,2]
[392610622,1761744661944,-500.0,0.00022465,2]
[392610623,1761744661954,-5116.71,0.00022465,2]
[392610624,1761744661963,-855.91,0.00022465,2]
[392610625,1761744661973,-500.0,0.00022465,2]
[392610626,1761744661982,-500.0,0.00022465,2]
[392610627,1761744661991,-530.74,0.00022465,2]
[392610628,1761744662002,-923.14,0.00022465,2]
[392610629,1761744662012,-985.04,0.00022465,2]
[392610630,1761744662021,-500.0,0.00022465,2]
[392610631,1761744662031,-500.0,0.00022465,2]
[392610632,1761744662042,-500.0,0.00022465,8]
[392610633,1761744662051,-1124.1,0.00022465,2]
[392610634,1761744662061,-500.0,0.00022465,2]
[392610635,1761744662070,-849.81,0.00022465,2]
[392610636,1761744662080,-500.0,0.00022465,2]
[392610637,1761744662089,-500.0,0.00022465,2]
[392610638,1761744662099,-259.63105628,0.00022465,2]
[392610639,1761744662108,-717.04,0.00022465,2]
[392610640,1761744662118,-500.0,0.00022465,2]
[392610641,1761744662127,-500.0,0.00022465,2]
[392610642,1761744662136,-500.0,0.00022465,2]
[392610643,1761744662145,-500.0,0.00022465,2]
[392610644,1761744662155,-745.01,0.00022465,2]
[392610645,1761744662164,-500.0,0.00022465,2]
[392610646,1761744662173,-500.0,0.00022465,2]
[392610647,1761744662183,-500.0,0.00022465,2]
[392610648,1761744662192,-969.87,0.00022465,2]
[392610649,1761744662202,-500.0,0.00022465,2]
[392610650,1761744662211,-500.0,0.00022465,2]
[392610651,1761744662221,-1249.47,0.00022465,2]
[392610652,1761744662230,-711.69,0.00022465,2]
[392610653,1761744662239,-1308.88,0.00022465,2]
[392610654,1761744662249,-1554.91,0.00022465,2]
[392610655,1761744662258,-1377.54,0.00022465,2]
[392610656,1761744662267,-807.84,0.00022465,2]
[392610657,1761744662277,-500.0,0.00022465,2]
[392610658,1761744662286,-500.0,0.00022465,2]
[392610659,1761744662296,-500.0,0.00022465,2]
[392610660,1761744662306,-500.0,0.00022465,2]
[392610661,1761744662316,-500.0,0.00022465,2]
[392610662,1761744662325,-500.0,0.00022465,2]
[392610663,1761744662334,-1184.99,0.00022465,2]
[392610664,1761744662343,-500.0,0.00022465,2]
[392610665,1761744662353,-500.0,0.00022465,2]
[392610666,1761744662362,-1217.51,0.00022465,2]
[392610667,1761744662372,-457.02363433,0.00022465,2]
[392610668,1761744662381,-500.0,0.00022465,2]
[392610669,1761744662391,-500.0,0.00022465,2]
[392610670,1761744662400,-578.94,0.00022465,2]
[392610671,1761744662410,-500.0,0.00022465,2]
[392610672,1761744662420,-1742.05,0.00022465,2]
[392610673,1761744662431,-500.0,0.00022465,2]
[392610674,1761744662440,-500.0,0.00022465,2]
[392610675,1761744662450,-500.0,0.00022465,2]
[392610676,1761744662459,-1723.75,0.00022465,2]
[392610677,1761744662469,-855.5,0.00022465,2]
[392610678,1761744662478,-1248.97,0.00022465,2]
[392610679,1761744662487,-2843.1,0.00022465,2]
[392610680,1761744662497,-500.0,0.00022465,2]
[392610681,1761744662506,-1506.04,0.00022465,2]
[392610682,1761744662516,-1614.63,0.00022465,2]
[392610683,1761744662526,-639.21,0.00022465,2]
[392610684,1761744662535,-500.0,0.00022465,2]
[392610685,1761744662547,-500.0,0.00022465,2]
[392610686,1761744662557,-500.0,0.00022465,2]
[392610687,1761744662566,-500.0,0.00022465,2]
[392610688,1761744662575,-1239.11,0.00022465,2]
[392610689,1761744662584,-500.0,0.00022465,2]
[392610690,1761744662594,-500.0,0.00022465,2]
[392610691,1761744662605,-573.57,0.00022465,2]
[392610692,1761744662615,-500.0,0.00022465,2]
[392610693,1761744662625,-500.0,0.00022465,2]
[392610694,1761744662635,-662.16,0.00022465,2]
[392610695,1761744662644,-1326.32,0.00022465,2]
[392610696,1761744662654,-500.0,0.00022465,2]
[392610697,1761744662663,-500.0,0.00022465,2]
[392610698,1761744662672,-2031.32,0.00022465,2]
[392610699,1761744662682,-1376.5,0.00022465,2]
[392610700,1761744662691,-702.52,0.00022465,2]
[392610701,1761744662701,-659.61,0.00022465,2]
[392610702,1761744662711,-729.47,0.00022465,2]
[392610703,1761744662720,-519.63,0.00022465,2]
[392610704,1761744662730,-516.79876197,0.00022465,2]
[392610705,1761744662739,-500.0,0.00022465,2]
[392610706,1761744662747,-500.0,0.00022465,2]
[392610707,1761744662756,-500.0,0.00022465,2]
[392610708,1761744662765,-500.0,0.00022465,2]
[392610709,1761744662774,-500.0,0.00022465,2]
[392610710,1761744662783,-500.0,0.00022465,2]
[392610711,1761744662792,-500.0,0.00022465,2]
[392610712,1761744662801,-500.0,0.00022465,2]
[392610713,1761744662810,-500.0,0.00022465,2]
[392610714,1761744662819,-500.0,0.00022465,2]
[392610715,1761744662828,-500.0,0.00022465,2]
[392610716,1761744662836,-500.0,0.00022465,2]
[392610717,1761744662845,-500.0,0.00022465,2]
[392610718,1761744662855,-570.13,0.00022465,2]
[392610719,1761744662863,-500.0,0.00022465,2]
[392610720,1761744662872,-13489.77,0.00022465,2]
[392610721,1761744662882,-500.0,0.00022465,2]
[392610722,1761744662893,-1494.74,0.00022465,2]
[392610723,1761744662902,-500.0,0.00022465,2]
[392610724,1761744662913,-593.62,0.00022465,2]
[392610725,1761744662922,-500.0,0.00022466,5]
[392610726,1761744662932,-150.0,0.00022473,2]
[392610727,1761744662941,-180.04140952,0.00022497,2]
[392610728,1761744662951,-501.23801103,0.00022521,2]
[392610729,1761744662960,-1000.0,0.00022521,2]
[392610730,1761744662970,-500.0,0.00022521,2]
[392610731,1761744662980,-500.98228793,0.00022521,2]
[392610732,1761744662989,-1000.0,0.00022521,2]
[392610733,1761744662999,-187.06423248,0.00022521,2]
[392610734,1761744663009,-1000.0,0.00022521,2]
[392610735,1761744663018,-626.45930008,0.00022521,2]
[392610736,1761744663028,-956.98520133,0.00022521,2]
[392610737,1761744663038,-1000.94858803,0.00022521,2]
[392610738,1761744663048,-1000.0,0.00022521,2]
[392610739,1761744663057,-1000.0,0.00022521,2]
[392610740,1761744663067,-1000.92677704,0.00022521,2]
[392610741,1761744663076,-1000.0,0.00022521,2]
[392610742,1761744663086,-1000.0,0.00022521,2]
[392610743,1761744663096,-1000.77818183,0.00022521,2]
[392610744,1761744663106,-1000.74940875,0.00022521,2]
[392610745,1761744663115,-1000.82727867,0.00022521,2]
[392610746,1761744663124,-1000.0,0.00022521,2]
[392610747,1761744663135,-1001.28867327,0.00022521,2]
[392610748,1761744663144,-1000.0,0.00022521,2]
[392610749,1761744663154,-1000.0,0.00022521,2]
[392610750,1761744663163,-1000.0,0.00022521,2]
[392610751,1761744663173,-1000.0,0.00022521,2]
[392610752,1761744663182,-654.75692793,0.00022521,2]
[392610753,1761744663192,-1000.0,0.00022521,2]
[392610754,1761744663201,-1000.0,0.00022521,2]
[392610755,1761744663211,-1000.80056805,0.00022521,2]
[392610756,1761744663220,-1000.0,0.00022521,2]
[392610757,1761744663230,-183.62884848,0.00022521,2]
[392610758,1761744663239,-1000.0,0.00022521,2]
[392610759,1761744663249,-613.28228579,0.00022521,2]
[392610760,1761744663258,-1000.98220529,0.00022521,2]
[392610761,1761744663272,-7188.52797001,0.00022639,2]
[392610762,1761744663282,-168.0,0.00022639,2]
[392610763,1761744663291,-260.0,0.00022641,2]
[392610764,1761744663301,-4002.56733869,0.000227,2]
[392610765,1761744663311,-204.0,0.00022736,2]
[392610766,1761744663320,-537.97,0.00022739,2]
[392610767,1761744663330,-500.0,0.00022739,2]
[392610768,1761744663342,-500.0,0.00022739,2]
[392610769,1761744663351,-335.0322945,0.00022739,2]
[392610770,1761744663361,-500.0,0.00022739,2]
[392610771,1761744663371,-500.0,0.00022739,2]
[392610772,1761744663381,-500.0,0.00022739,2]
[392610773,1761744663391,-453.33308829,0.00022739,2]
[392610774,1761744663400,-896.24,0.00022739,2]
[392610775,1761744663410,-500.0,0.00022739,2]
[392610776,1761744663419,-500.0,0.00022739,2]
[392610777,1761744663428,-500.0,0.00022739,2]
[392610778,1761744663439,-500.0,0.00022739,2]
[392610779,1761744663448,-500.0,0.00022739,2]
[392610780,1761744663457,-500.0,0.00022739,2]
[392610781,1761744663467,-500.0,0.00022739,2]
[392610782,1761744663477,-1004.66,0.00022739,2]
[392610783,1761744663486,-500.0,0.00022739,2]
[392610784,1761744663536,-500.0,0.00022739,2]
[392610785,1761744663545,-500.0,0.00022739,2]
[392610786,1761744663555,-500.0,0.00022739,2]
[392610787,1761744663564,-500.0,0.00022739,2]
[392610788,1761744663574,-500.0,0.00022739,2]
[392610789,1761744663583,-500.0,0.00022739,2]
[392610790,1761744663593,-500.0,0.00022739,2]
[392610791,1761744663602,-500.0,0.00022739,2]
[392610792,1761744663611,-500.0,0.00022739,2]
[392610793,1761744663621,-500.0,0.00022739,2]
[392610794,1761744663631,-500.0,0.00022739,2]
[392610795,1761744663640,-500.0,0.00022739,2]
[392610796,1761744663650,-500.0,0.00022739,2]
[392610797,1761744663660,-599.24,0.00022739,2]
[392610798,1761744663669,-500.0,0.00022739,2]
[392610799,1761744663678,-180.0881438,0.00022739,2]
[392610800,1761744663688,-618.44615536,0.00022739,2]
[392610801,1761744663698,-500.0,0.00022739,2]
[392610802,1761744663707,-500.0,0.00022739,2]
[392610803,1761744663717,-500.0,0.00022739,2]
[392610804,1761744663727,-500.0,0.00022739,2]
[392610805,1761744663736,-581.49412158,0.00022739,2]
[392610806,1761744663747,-500.0,0.00022739,2]
[392610807,1761744663756,-500.0,0.00022739,2]
[392610808,1761744663765,-500.0,0.00022739,2]
[392610809,1761744663775,-500.0,0.00022739,2]
[392610810,1761744663784,-512.79,0.00022739,2]
[392610811,1761744663793,-500.0,0.00022739,2]
[392610812,1761744663803,-500.0,0.00022739,2]
[392610813,1761744663814,-2350.58,0.00022739,2]
[392610814,1761744663824,-500.0,0.00022739,2]
[392610815,1761744663833,-500.0,0.00022739,2]
[392610816,1761744663843,-500.0,0.00022739,2]
[392610817,1761744663852,-500.0,0.00022739,2]
[392610818,1761744663862,-500.0,0.00022739,2]
[392610819,1761744663871,-500.0,0.00022739,2]
[392610820,1761744663881,-500.0,0.00022739,2]
[392610821,1761744663890,-500.0,0.00022739,2]
[392610822,1761744663900,-500.0,0.00022739,2]
[392610823,1761744663909,-500.0,0.00022739,2]
[392610824,1761744663920,-500.0,0.00022739,2]
[392610825,1761744663930,-500.0,0.00022739,2]
[392610826,1761744663939,-583.64406391,0.00022739,2]
[392610827,1761744663948,-500.0,0.00022739,2]
[392610828,1761744663958,-500.0,0.00022739,2]
[392610829,1761744663967,-500.0,0.00022739,2]
[392610830,1761744663976,-500.0,0.00022739,2]
[392610831,1761744663986,-500.0,0.00022739,2]
[392610832,1761744663995,-500.0,0.00022739,2]
[392610833,1761744664003,-500.0,0.00022739,2]
[392610834,1761744664014,-500.0,0.00022739,2]
[392610835,1761744664023,-1099.68,0.00022739,2]
[392610836,1761744664033,-500.0,0.00022739,2]
[392610837,1761744664043,-500.0,0.00022739,2]
[392610838,1761744664052,-1576.49,0.00022739,2]
[392610839,1761744664061,-500.0,0.00022739,2]
[392610840,1761744664071,-500.0,0.00022739,2]
[392610841,1761744664082,-500.0,0.00022739,2]
[392610842,1761744664092,-468.10884117,0.00022739,2]
[392610843,1761744664102,-418.2821931,0.00022739,2]
[392610844,1761744664111,-1102.85,0.00022739,2]
[392610845,1761744664120,-500.0,0.00022739,2]
[392610846,1761744664131,-548.55428748,0.00022739,2]
[392610847,1761744664140,-500.0,0.00022739,2]
[392610848,1761744664149,-603.26,0.00022739,2]
[392610849,1761744664158,-500.0,0.00022739,2]
[392610850,1761744664167,-444.79968697,0.00022739,2]
[392610851,1761744664176,-500.0,0.00022739,2]
[392610852,1761744664185,-341.66790186,0.00022739,2]
[392610853,1761744664195,-500.0,0.00022739,2]
[392610854,1761744664205,-500.0,0.00022739,2]
[392610855,1761744664214,-684.04,0.00022739,2]
[392610856,1761744664224,-500.0,0.00022739,2]
[392610857,1761744664234,-500.0,0.00022739,2]
[392610858,1761744664243,-500.0,0.00022739,2]
[392610859,1761744664252,-788.68,0.00022739,2]
[392610860,1761744664262,-500.0,0.00022739,2]
[392610861,1761744664273,-500.0,0.00022739,2]
[392610862,1761744664282,-626.15,0.00022739,2]
[392610863,1761744664291,-500.0,0.00022739,2]
[392610864,1761744664302,-577.1626531,0.00022739,2]
[392610865,1761744664311,-500.0,0.00022739,2]
[392610866,1761744664320,-500.0,0.00022739,2]
[392610867,1761744664330,-500.0,0.00022739,2]
[392610868,1761744664340,-500.0,0.00022739,2]
[392610869,1761744664351,-500.0,0.00022739,2]
[392610870,1761744664360,-500.0,0.00022739,2]
[392610871,1761744664369,-500.0,0.00022739,2]
[392610872,1761744664379,-500.0,0.00022739,2]
[392610873,1761744664388,-698.4,0.00022739,2]
[392610874,1761744664398,-500.0,0.00022739,2]
[392610875,1761744664407,-500.0,0.00022739,2]
[392610876,1761744664418,-500.0,0.00022739,2]
[392610877,1761744664428,-500.0,0.00022739,2]
[392610878,1761744664437,-500.0,0.00022739,2]
[392610879,1761744664446,-500.0,0.00022739,2]
[392610880,1761744664455,-500.0,0.00022739,2]
[392610881,1761744664465,-500.0,0.00022739,2]
[392610882,1761744664474,-500.0,0.00022739,2]
[392610883,1761744664483,-500.0,0.00022739,2]
[392610884,1761744664493,-451.36160487,0.00022739,2]
[392610885,1761744664503,-500.0,0.00022739,2]
[392610886,1761744664512,-500.0,0.00022739,2]
[392610887,1761744664522,-500.0,0.00022739,2]
[392610888,1761744664531,-500.0,0.00022739,2]
[392610889,1761744664541,-899.05,0.00022739,2]
[392610890,1761744664551,-500.0,0.00022739,2]
[392610891,1761744664561,-500.0,0.00022739,2]
[392610892,1761744664569,-500.0,0.00022739,2]
[392610893,1761744664579,-500.0,0.00022739,2]
[392610894,1761744664589,-714.08,0.00022739,2]
[392610895,1761744664601,-500.0,0.00022739,2]
[392610896,1761744664610,-500.0,0.00022739,2]
[392610897,1761744664619,-500.0,0.00022739,2]
[392610898,1761744664630,-988.15,0.00022739,2]
[392610899,1761744664639,-500.0,0.00022739,2]
[392610900,1761744664648,-500.0,0.00022739,2]
[392610901,1761744664658,-500.0,0.00022739,2]
[392610902,1761744664667,-500.0,0.00022739,2]